{"text_format":"3","workbook":"xlsx","n_sheets":4,"sheets":["Punkty kontrolne","Plan","Informacje","Dane wykresu"],"not_rendered":{"charts":1,"defined_names":2},"read":"whole","date_system":"1900"}

{"sheet":"Punkty kontrolne","index":0,"n_rows":27,"n_cols":5,"rows_kept":27}
["W tym arkuszu utwórz plan, wprowadzając ważne punkty kontrolne i działania.\nW komórce C1 znajduje się tytuł tego arkusza. \nW arkuszu Informacje podano informacje dotyczące sposobu używania tego arkusza, w tym instrukcje dla czytników zawartości ekranu.\nAby uzyskać dodatkowe instrukcje, przechodź w dół kolumny A.",null,"Punkty kontrolne"]
["Nagłówki tabeli znajdują się w komórkach od C2 do E2. Użyj opcji sortowania i filtrowania, aby posortować lub znaleźć konkretne wpisy.\nWprowadź punkty kontrolne z datami i ustaw pozycję na potrzeby przedstawienia punktu kontrolnego na wykresie w tabeli rozpoczynającej się w komórce C3.\nKolumna B została ukryta. Wykres wygenerowany na podstawie tych danych z paskiem przewijania służącym do wyświetlania fragmentów osi czasu. Kolumna B pomaga ustalić, które punkty kontrolne mają być przedstawiane na wykresie po przejściu dalej na pasku przewijania. \nOstrzeżenie: Usunięcie lub zmodyfikowanie zawartości kolumny B może zakłócić integralność wykresów wbudowanych w tym skoroszycie.","Lp.","Pozycja","Data","Punkt kontrolny"]
["W komórce C1 wprowadź wartość Pozycja w celu przedstawienia na wykresie daty i punktu kontrolnego. Wprowadź liczbę dodatnią z przedziału od 1 do 3, aby przedstawić punkt kontrolny na wykresie powyżej osi czasu. Wprowadź liczbę ujemną z przedziału od 1 do 3, aby przedstawić punkt kontrolny na wykresie poniżej osi czasu.\nWprowadź datę i punkt kontrolny lub działanie w kolumnach D i E w tabeli.\nPowtórz te czynności dla każdego nowego wiersza w tabeli z prawej.\nDane przykładowe podano w wierszach od 3 do 26. Zmodyfikuj lub usuń zawartość przykładową, aby utworzyć własny plan.\nPrzejdź do komórki A27, aby uzyskać dalsze instrukcje.",{"$f":"ROW($A1)","v":1},1,{"$f":"TODAY()","v":"2018-06-29"},"Start"]
[null,{"$f":"ROW($A2)","v":2},-2,{"$f":"D3+10","v":"2018-07-09"},"Analiza problemu\ndziałanie 1"]
[null,{"$f":"ROW($A3)","v":3},1,{"$f":"D4+20","v":"2018-07-29"},"Opracowanie przypadku biznesowego\ndziałanie 1\ndziałanie 2"]
[null,{"$f":"ROW($A4)","v":4},-1,{"$f":"D5+30","v":"2018-08-28"},"Przejrzenie prezentacji"]
[null,5,{"v":-0.5,"d":"-1"},{"$f":"D6+40","v":"2018-10-07"},"Rozpoczęcie wykonywania\ndziałanie 1\ndziałanie 2"]
[null,6,2,{"$f":"D7+50","v":"2018-11-26"},"Dostosowanie wykonywania\ndziałanie 1\ndziałanie 2\ndziałanie 3"]
[null,7,{"v":0.5,"d":"1"},{"$f":"D8+60","v":"2019-01-25"},"Wykupienie przez udziałowców"]
[null,8,-1,{"$f":"D9+70","v":"2019-04-05"},"Wybór zasobów"]
[null,9,{"v":0.5,"d":"1"},{"$f":"D10+80","v":"2019-06-24"},"Utworzenie zespołu\ndziałanie 1 "]
[null,10,-2,{"$f":"D11+90","v":"2019-09-22"},"Rozpoczęcie pracy przez zespół\ndziałanie 1 \ndziałanie 2\ndziałanie 3\ndziałanie 4"]
[null,11,3,{"$f":"D12+100","v":"2019-12-31"},"Rozpoczęcie zbierania danych"]
[null,12,-1,{"$f":"D13+90","v":"2020-03-30"},"Analiza danych"]
[null,13,1,{"$f":"D14+80","v":"2020-06-18"},"Projektowanie"]
[null,14,1,{"$f":"D15+70","v":"2020-08-27"},"Weryfikacja koncepcji"]
[null,15,-3,{"$f":"D16+60","v":"2020-10-26"},"Testowanie i analiza"]
[null,16,-2,{"$f":"D17+50","v":"2020-12-15"},"Przeprojektowanie"]
[null,17,2,{"$f":"D18+40","v":"2021-01-24"},"Ponowne opracowanie"]
[null,18,-1,{"$f":"D19+30","v":"2021-02-23"},"Testowanie i analiza"]
[null,19,1,{"$f":"D20+20","v":"2021-03-15"},"Przeprojektowanie"]
[null,20,-3,{"$f":"D21+10","v":"2021-03-25"},"Ponowne opracowanie"]
[null,21,2,{"$f":"D22+20","v":"2021-04-14"},"Test końcowy"]
[null,22,1,{"$f":"D23+30","v":"2021-05-14"},"Test wersji beta"]
[null,23,-3,{"$f":"D24+40","v":"2021-06-23"},"Przegląd"]
[null,24,-2,{"$f":"D25+50","v":"2021-08-12"},"Wydanie na rynek"]
["Aby dodać więcej wierszy do tabeli Punkty kontrolne planu, po prostu wstaw nowy wiersz powyżej tego.\nW tym arkuszu nie ma już żadnych dodatkowych instrukcji.",null,"Aby dodać więcej punktów kontrolnych, wstaw nowe wiersze powyżej tej linii."]

{"sheet":"Plan","index":1,"n_rows":3,"n_cols":4,"rows_kept":3}
["W tym arkuszu znajduje się wykres wyświetlający punkty kontrolne z arkusza Punkty kontrolne. \nLata są wskazane w komórkach B2, C2 i D2. Zastosowano do nich styl Nagłówek 3.\nJednorazowo jest kreślonych 10 punktów. \nUżywaj paska przewijania w komórkach od B4 do D4 do nawigowania po planie.\nLata osi czasu znajdują się w komórkach od B3 do D3.\nW tym arkuszu nie ma już żadnych dodatkowych instrukcji."]
[]
[null,{"$f":"'Dane wykresu'!B20","v":2018},{"$f":"'Dane wykresu'!B21","v":""},{"$f":"'Dane wykresu'!B22","v":2019}]

{"sheet":"Informacje","index":2,"n_rows":5,"n_cols":1,"rows_kept":5}
["Informacje na temat tego skoroszytu"]
["Przewodnik dotyczący czytników zawartości ekranu"]
["W tym skoroszycie znajdują się 4 arkusze. \n\nPunkty kontrolne\nPlan\nInformacje\nDane wykresu (ukryty)\n\nInstrukcje dotyczące każdego arkusza znajdują się w kolumnie A (zaczynają się od komórki A1). Ich tekst jest ukryty. Każdy krok prowadzi Cię przez informacje w danym wierszu. Kolejne kroki podane są w komórkach A2, A3 i tak dalej, chyba że wyraźnie stwierdzono inaczej. Na przykład tekst instrukcji może brzmieć „aby wykonać następny krok, przejdź do komórki A6”. \n\nTekst ukryty nie zostanie wydrukowany.\n\nAby usunąć te instrukcje z dowolnego arkusza, po prostu usuń kolumnę A.\n"]
["Ten plan używa pozycji do przedstawiania na wykresie punktów kontrolnych i działań. Pozycji można używać do dodawania ważności punktowi kontrolnemu lub działaniu. Po prostu dostosuj wartości zgodnie z preferencją dotyczącą ważności. Na przykład punkt kontrolny/działanie 3 może być ważniejsze niż punkt kontrolny/działanie 2. Aby wskazać to na wykresie, po prostu ustaw wartość Pozycja dla punkt kontrolny/działanie 3 wyższą niż dla punkt kontrolny/działanie 2.  \n"]
["Jest to ostatnia instrukcja w tym arkuszu."]

{"sheet":"Dane wykresu","index":3,"n_rows":26,"n_cols":4,"rows_kept":26,"hidden":true}
["W tym arkuszu znajdują się dane do tworzenia dynamicznego wykresu. Nie usuwaj tego arkusza!\nUsunięcie tego arkusza może negatywnie wpłynąć na dynamiczne funkcje skoroszytu.","Nie usuwaj tego arkusza!"]
["Tytuł tabeli znajduje się w komórce B2.","Dynamiczna zawartość wykresu"]
["Nagłówki tabeli znajdują się w komórkach od B3 do D3. \nTa tabela jest aktualizowana automatycznie na podstawie zawartości wprowadzonej w arkuszu Punkty kontrolne.\nOstrzeżenie: Zmodyfikowanie lub usunięcie zawartości w tej tabeli może negatywnie wpłynąć na funkcje aktualizacji dynamicznych wykresu Plan w arkuszu Plan.\nPrzejdź do komórki A15, aby uzyskać dalsze instrukcje.","Data","Zdarzenia","Pozycja"]
[null,{"$f":"IFERROR(IF(LEN('Punkty kontrolne'!D3)=0,\"\",INDEX(Punkty_kontrolne_planu[],'Punkty kontrolne'!$B3+$B$17,3)),\"\")","v":"2018-06-29"},{"$f":"IFERROR(IF(LEN('Punkty kontrolne'!E3)=0,\"\",INDEX(Punkty_kontrolne_planu[],'Punkty kontrolne'!$B3+$B$17,4)),\"\")","v":"Start"},{"$f":"IFERROR(INDEX(Punkty_kontrolne_planu[],'Punkty kontrolne'!$B3+$B$17,2),\"\")","v":1}]
[null,{"$f":"IFERROR(IF(LEN('Punkty kontrolne'!D4)=0,\"\",INDEX(Punkty_kontrolne_planu[],'Punkty kontrolne'!$B4+$B$17,3)),\"\")","v":"2018-07-09"},{"$f":"IFERROR(IF(LEN('Punkty kontrolne'!E4)=0,\"\",INDEX(Punkty_kontrolne_planu[],'Punkty kontrolne'!$B4+$B$17,4)),\"\")","v":"Analiza problemu\ndziałanie 1"},{"$f":"IFERROR(INDEX(Punkty_kontrolne_planu[],'Punkty kontrolne'!$B4+$B$17,2),\"\")","v":-2}]
[null,{"$f":"IFERROR(IF(LEN('Punkty kontrolne'!D5)=0,\"\",INDEX(Punkty_kontrolne_planu[],'Punkty kontrolne'!$B5+$B$17,3)),\"\")","v":"2018-07-29"},{"$f":"IFERROR(IF(LEN('Punkty kontrolne'!E5)=0,\"\",INDEX(Punkty_kontrolne_planu[],'Punkty kontrolne'!$B5+$B$17,4)),\"\")","v":"Opracowanie przypadku biznesowego\ndziałanie 1\ndziałanie 2"},{"$f":"IFERROR(INDEX(Punkty_kontrolne_planu[],'Punkty kontrolne'!$B5+$B$17,2),\"\")","v":1}]
[null,{"$f":"IFERROR(IF(LEN('Punkty kontrolne'!D6)=0,\"\",INDEX(Punkty_kontrolne_planu[],'Punkty kontrolne'!$B6+$B$17,3)),\"\")","v":"2018-08-28"},{"$f":"IFERROR(IF(LEN('Punkty kontrolne'!E6)=0,\"\",INDEX(Punkty_kontrolne_planu[],'Punkty kontrolne'!$B6+$B$17,4)),\"\")","v":"Przejrzenie prezentacji"},{"$f":"IFERROR(INDEX(Punkty_kontrolne_planu[],'Punkty kontrolne'!$B6+$B$17,2),\"\")","v":-1}]
[null,{"$f":"IFERROR(IF(LEN('Punkty kontrolne'!D7)=0,\"\",INDEX(Punkty_kontrolne_planu[],'Punkty kontrolne'!$B7+$B$17,3)),\"\")","v":"2018-10-07"},{"$f":"IFERROR(IF(LEN('Punkty kontrolne'!E7)=0,\"\",INDEX(Punkty_kontrolne_planu[],'Punkty kontrolne'!$B7+$B$17,4)),\"\")","v":"Rozpoczęcie wykonywania\ndziałanie 1\ndziałanie 2"},{"$f":"IFERROR(INDEX(Punkty_kontrolne_planu[],'Punkty kontrolne'!$B7+$B$17,2),\"\")","v":-0.5}]
[null,{"$f":"IFERROR(IF(LEN('Punkty kontrolne'!D8)=0,\"\",INDEX(Punkty_kontrolne_planu[],'Punkty kontrolne'!$B8+$B$17,3)),\"\")","v":"2018-11-26"},{"$f":"IFERROR(IF(LEN('Punkty kontrolne'!E8)=0,\"\",INDEX(Punkty_kontrolne_planu[],'Punkty kontrolne'!$B8+$B$17,4)),\"\")","v":"Dostosowanie wykonywania\ndziałanie 1\ndziałanie 2\ndziałanie 3"},{"$f":"IFERROR(INDEX(Punkty_kontrolne_planu[],'Punkty kontrolne'!$B8+$B$17,2),\"\")","v":2}]
[null,{"$f":"IFERROR(IF(LEN('Punkty kontrolne'!D9)=0,\"\",INDEX(Punkty_kontrolne_planu[],'Punkty kontrolne'!$B9+$B$17,3)),\"\")","v":"2019-01-25"},{"$f":"IFERROR(IF(LEN('Punkty kontrolne'!E9)=0,\"\",INDEX(Punkty_kontrolne_planu[],'Punkty kontrolne'!$B9+$B$17,4)),\"\")","v":"Wykupienie przez udziałowców"},{"$f":"IFERROR(INDEX(Punkty_kontrolne_planu[],'Punkty kontrolne'!$B9+$B$17,2),\"\")","v":0.5}]
[null,{"$f":"IFERROR(IF(LEN('Punkty kontrolne'!D10)=0,\"\",INDEX(Punkty_kontrolne_planu[],'Punkty kontrolne'!$B10+$B$17,3)),\"\")","v":"2019-04-05"},{"$f":"IFERROR(IF(LEN('Punkty kontrolne'!E10)=0,\"\",INDEX(Punkty_kontrolne_planu[],'Punkty kontrolne'!$B10+$B$17,4)),\"\")","v":"Wybór zasobów"},{"$f":"IFERROR(INDEX(Punkty_kontrolne_planu[],'Punkty kontrolne'!$B10+$B$17,2),\"\")","v":-1}]
[null,{"$f":"IFERROR(IF(LEN('Punkty kontrolne'!D11)=0,\"\",INDEX(Punkty_kontrolne_planu[],'Punkty kontrolne'!$B11+$B$17,3)),\"\")","v":"2019-06-24"},{"$f":"IFERROR(IF(LEN('Punkty kontrolne'!E11)=0,\"\",INDEX(Punkty_kontrolne_planu[],'Punkty kontrolne'!$B11+$B$17,4)),\"\")","v":"Utworzenie zespołu\ndziałanie 1 "},{"$f":"IFERROR(INDEX(Punkty_kontrolne_planu[],'Punkty kontrolne'!$B11+$B$17,2),\"\")","v":0.5}]
[null,{"$f":"IFERROR(IF(LEN('Punkty kontrolne'!D12)=0,\"\",INDEX(Punkty_kontrolne_planu[],'Punkty kontrolne'!$B12+$B$17,3)),\"\")","v":"2019-09-22"},{"$f":"IFERROR(IF(LEN('Punkty kontrolne'!E12)=0,\"\",INDEX(Punkty_kontrolne_planu[],'Punkty kontrolne'!$B12+$B$17,4)),\"\")","v":"Rozpoczęcie pracy przez zespół\ndziałanie 1 \ndziałanie 2\ndziałanie 3\ndziałanie 4"},{"$f":"IFERROR(INDEX(Punkty_kontrolne_planu[],'Punkty kontrolne'!$B12+$B$17,2),\"\")","v":-2}]
[]
["Możliwość przewijania planu jest udostępniana za pomocą wartości przyrostowej. Tytuł tej możliwości znajduje się w komórce B15.\nW komórkach B16 i B17 znajduje się tabela z nagłówkiem i jedną wartością.\nPrzejdź do komórki A19, aby uzyskać dalsze instrukcje.","Funkcja przewijania"]
[null,"Przyrost wiersza"]
[null,0]
[]
["Wykres Plan kreśli lata dla osi czasu. W tym celu lata muszą zostać przechwycone z listy punktów kontrolnych. \nTytuł tej sekcji znajduje się w komórce B19 „Rok”. \nWartości lat są generowane automatycznie w komórkach od C20 do C22.\nOstrzeżenie: Usunięcie lub zmodyfikowanie tych lat może zmienić dokładność wykresu Plan.\nPrzejdź do komórki A24, aby uzyskać dalsze instrukcje.","Rok"]
[null,{"$f":"IFERROR(YEAR(B4),\"\")","v":2018},"<-- rok punktu początkowego planu"]
[null,{"$f":"IFERROR(IF(YEAR($B$9)=$B$20,\"\",YEAR($B$9)),\"\")","v":""},"<-- rok środkowego okresu planu; może być pusty jeśli jest taki sam jak rok punktu początkowego planu"]
[null,{"$f":"IFERROR(IF(YEAR($B$13)=$B$20,\"\",YEAR($B$13)),\"\")","v":2019},"<-- rok punktu końcowego planu; może być pusty jeśli jest taki sam jak rok punktu początkowego planu"]
[]
["Znaczniki pierścieniowe na wykresie Plan zawierają daty z dynamicznej zawartości wykresu w tym arkuszu. Daty to pierwsza data w komórce C24, środkowa data w komórce C25 i ostatnia data w komórce C26.\nW tym arkuszu nie ma już żadnych dodatkowych instrukcji.","Pierwsza data",{"$f":"B4","v":"2018-06-29"}]
[null,"Środkowa data",{"$f":"B9","v":"2018-11-26"}]
[null,"Ostatnia data",{"$f":"B13","v":"2019-09-22"}]